bitfinex/quotes_SOLUSD_20250226
["timestamp","ask_amount","ask_price","bid_price","bid_amount"]
[1740591298234,3.70843436,135.7,135.63,20.0]
[1740591299042,7.683,135.71,135.64,18.64964886]
[1740591299244,7.683,135.71,135.63,20.0]
[1740591299419,13.51393953,135.71,135.58,0.03]
[1740591299809,13.51393953,135.71,135.6,20.0]
[1740591299810,83.9,135.7,135.6,20.0]
[1740591300026,82.9,135.7,135.6,20.0]
[1740591300316,13.51393953,135.71,135.64,20.0]
[1740591300317,82.9,135.69,135.64,20.0]
[1740591300639,82.9,135.69,135.65,20.23794886]
[1740591301146,0.063,135.71,135.66,0.28432314]
[1740591301727,82.9,135.7,135.61,0.28432314]
[1740591301921,90.54,135.69,135.6,1.5931]
[1740591302125,90.54,135.69,135.61,18.64964886]
[1740591302537,90.54,135.69,135.62,0.28432314]
[1740591303057,90.54,135.69,135.61,18.64964886]
[1740591303861,90.54,135.69,135.61,26.02364886]
[1740591304156,0.063,135.71,135.66,20.0]
[1740591304366,82.9,135.7,135.61,0.28432314]
[1740591304535,82.9,135.69,135.63,20.0]
[1740591304724,82.9,135.69,135.64,18.933972]
[1740591304930,0.063,135.71,135.67,20.0]
[1740591305226,0.063,135.71,135.7,39.21829514]
[1740591305437,0.2462,135.81,135.74,20.0]
[1740591305438,82.9,135.79,135.74,20.0]
[1740591305646,82.9,135.8,135.75,18.64964886]
[1740591305850,101.24952817,135.82,135.75,18.64964886]
[1740591306027,103.45832817,135.82,135.73,20.28432314]
[1740591306228,101.24952817,135.82,135.77,0.28432314]
[1740591306422,93.56952817,135.82,135.79,20.0]
[1740591306641,10.66952817,135.82,135.81,18.64964886]
[1740591306841,10.66952817,135.82,135.81,18.933972]
[1740591307351,0.063,135.85,135.81,18.933972]
[1740591307939,0.063,135.85,135.8,21.6656]
[1740591308140,0.063,135.85,135.8,1.6656]
[1740591308326,82.9,135.84,135.76,0.28432314]
[1740591308532,82.9,135.83,135.76,0.28432314]
[1740591308734,82.9,135.83,135.76,39.21829514]
[1740591309249,0.063,135.85,135.81,20.0]
[1740591309458,0.063,135.85,135.78,18.64964886]
[1740591309625,0.063,135.85,135.79,0.28432314]
[1740591310024,0.063,135.85,135.81,20.0]
[1740591310230,0.063,135.85,135.82,18.64964886]
[1740591310628,0.063,135.85,135.81,20.0]
[1740591310629,0.063,135.85,135.75,205.92864411]
[1740591310835,82.9,135.84,135.75,1.5889]
[1740591311053,91.64,135.83,135.69,1.5335]
[1740591311229,90.64,135.83,135.71,20.0]
[1740591311438,2.2088,135.82,135.69,1.5335]
[1740591311846,82.9,135.81,135.7,20.21829514]
[1740591312053,82.9,135.8,135.75,0.28432314]
[1740591312353,82.9,135.79,135.69,1.5335]
[1740591312543,90.64,135.78,135.69,1.5335]
[1740591312858,90.64,135.78,135.71,20.0]
[1740591313155,90.64,135.78,135.72,18.64964886]
[1740591313356,82.9,135.77,135.72,18.64964886]
[1740591313526,82.9,135.77,135.73,0.28432314]
[1740591313732,82.9,135.77,135.75,20.0]
[1740591313958,9.949,135.81,135.75,20.0]
[1740591314129,82.9,135.8,135.75,20.0]
[1740591314942,82.9,135.79,135.69,1.5335]
[1740591315251,82.9,135.78,135.71,20.0]
[1740591315558,85.1096,135.77,135.69,1.5335]
[1740591315757,7.72,135.76,135.69,21.5335]
[1740591315932,82.9,135.75,135.7,18.64964886]
[1740591316735,85.1099,135.75,135.7,18.64964886]
[1740591317240,82.9,135.75,135.7,18.64964886]
[1740591317566,82.9,135.78,135.74,18.64964886]
[1740591317862,82.9,135.78,135.73,0.28432314]
[1740591317863,82.9,135.78,135.71,0.14216157]
[1740591318154,82.9,135.78,135.75,38.64964886]
[1740591318353,85.1094,135.78,135.75,20.0]
[1740591318653,85.1094,135.78,135.69,2.5335]
[1740591318654,82.9,135.77,135.7,0.28432314]
[1740591318861,85.1097,135.76,135.7,18.933972]
[1740591319074,85.1097,135.76,135.69,21.5335]
[1740591319075,82.9,135.75,135.69,21.5335]
[1740591319379,90.64,135.75,135.69,1.5335]
[1740591319534,90.64,135.75,135.7,18.64964886]
[1740591319963,90.703,135.75,135.7,18.64964886]
[1740591320957,2.2101,135.74,135.7,18.64964886]
[1740591321151,85.1101,135.74,135.69,1.5335]
[1740591321335,85.1101,135.74,135.68,0.14216157]
[1740591321754,85.1101,135.74,135.69,20.0]
[1740591322535,10.0129,135.75,135.7,38.933972]
[1740591322937,10.0129,135.75,135.7,38.64964886]
[1740591323867,10.0129,135.75,135.71,0.28432314]
[1740591324356,2.2729,135.75,135.71,0.28432314]
[1740591324575,2.2729,135.75,135.7,38.64964886]
[1740591324937,0.063,135.75,135.7,38.64964886]
[1740591325643,0.063,135.75,135.68,82.4]
[1740591326149,82.9,135.74,135.67,0.28432314]
[1740591326343,0.063,135.75,135.68,20.0]
[1740591326344,82.9,135.73,135.68,20.0]
[1740591326746,82.9,135.73,135.69,18.64964886]
[1740591326962,0.063,135.75,135.58,0.03]
[1740591326963,7.7382,135.69,135.58,0.03]
[1740591327256,82.9,135.68,135.58,0.03]
[1740591327449,94.54256633,135.67,135.58,0.03]
[1740591327945,12.0823,135.72,135.63,19.24829514]
[1740591328148,2.2105,135.71,135.67,18.64964886]
[1740591328354,2.2104,135.72,135.67,18.64964886]
[1740591328756,2.2104,135.72,135.64,1.6615]
[1740591328958,2.2107,135.7,135.65,18.64964886]
[1740591329961,82.9,135.71,135.65,18.64964886]
[1740591330150,85.1106,135.71,135.65,18.64964886]
[1740591330349,82.9,135.71,135.66,0.28432314]
[1740591330866,85.1106,135.71,135.65,18.64964886]
[1740591331362,82.9,135.71,135.65,18.64964886]
[1740591331561,85.1106,135.71,135.64,1.6615]
[1740591331766,82.9,135.71,135.65,0.28432314]
[1740591331964,82.9,135.71,135.65,18.933972]
[1740591332762,90.8,135.73,135.66,18.933972]
[1740591332969,90.8,135.73,135.69,20.0]
[1740591334051,0.23018573,135.71,135.69,20.0]
[1740591334457,0.23018573,135.71,135.66,18.64964886]
[1740591334667,0.23018573,135.71,135.66,20.0]
[1740591334847,0.23018573,135.71,135.67,18.64964886]
[1740591335147,0.23018573,135.71,135.68,0.28432314]
[1740591335355,0.23018573,135.71,135.7,38.933972]
[1740591336649,0.23018573,135.71,135.68,0.28432314]
[1740591337169,0.23018573,135.71,135.7,20.0]
[1740591337352,0.23018573,135.71,135.64,9.5215]
[1740591337755,0.23018573,135.71,135.67,20.0]
[1740591338552,0.23018573,135.71,135.65,19.07613357]
[1740591339349,82.9,135.7,135.65,18.64964886]
[1740591339883,82.9,135.7,135.68,20.0]
[1740591340058,0.23018573,135.71,135.69,18.64964886]
[1740591340569,0.23018573,135.71,135.7,0.42648471]
[1740591341566,0.23018573,135.71,135.69,18.64964886]
[1740591341772,0.23018573,135.71,135.69,26.01924886]
[1740591342349,0.23018573,135.71,135.69,18.64964886]
[1740591342759,0.23018573,135.71,135.68,20.42648471]
[1740591342760,0.23018573,135.71,135.68,20.0]
[1740591343066,0.23018573,135.71,135.69,18.64964886]
[1740591343265,0.23018573,135.71,135.68,20.0]
[1740591343474,0.23018573,135.71,135.69,26.44573357]
[1740591344574,0.23018573,135.71,135.7,0.42648471]
[1740591344777,0.23018573,135.71,135.68,27.3702]
[1740591344952,0.23018573,135.71,135.69,18.64964886]
[1740591345272,0.29318573,135.71,135.7,0.42648471]
[1740591345770,0.29318573,135.71,135.7,7.79558471]
[1740591345949,0.29318573,135.71,135.7,0.42648471]
[1740591346155,0.29318573,135.71,135.69,38.64964886]
[1740591346770,0.29318573,135.71,135.69,46.01914886]
[1740591346970,82.9,135.7,135.64,1.6615]
[1740591347293,82.9,135.7,135.65,7.3719]
[1740591347589,82.9,135.7,135.65,7.3716]
[1740591347971,82.9,135.69,135.63,0.03]
[1740591348175,82.9,135.68,135.63,0.03]
[1740591348363,82.9,135.68,135.64,20.0]
[1740591348951,1.84877766,135.69,135.64,20.0]
[1740591349183,1.84877766,135.69,135.66,20.0]
[1740591349857,1.84877766,135.68,135.65,18.64964886]
[1740591350056,1.84877766,135.68,135.64,20.0]
[1740591350370,1.84877766,135.68,135.67,38.64964886]
[1740591350764,0.29318573,135.71,135.67,38.64964886]
[1740591350963,0.29318573,135.71,135.68,18.64964886]
[1740591351184,0.29318573,135.71,135.7,39.07613357]
[1740591351753,0.29318573,135.71,135.7,128.98739514]
[1740591351954,0.29318573,135.71,135.7,130.98739514]
[1740591352519,0.063,135.75,135.74,39.21829514]
[1740591352791,0.063,135.75,135.74,121.61829514]
[1740591353356,0.063,135.75,135.74,123.61829514]
[1740591353562,0.063,135.75,135.74,130.98529514]
[1740591354008,82.9,135.84,135.78,20.0]
[1740591354315,82.9,135.83,135.79,18.64964886]
[1740591354883,82.9,135.82,135.75,0.28432314]
[1740591355078,82.9,135.81,135.77,0.28432314]
[1740591355278,82.9,135.81,135.78,20.0]
[1740591355591,1.84709933,135.82,135.78,20.0]
[1740591356112,4.05589933,135.82,135.75,18.64964886]
[1740591356285,82.9,135.81,135.74,1.84732314]
[1740591356805,84.74709933,135.81,135.74,1.84732314]
[1740591356992,84.74709933,135.81,135.76,20.0]
[1740591357707,84.74709933,135.81,135.77,19.21829514]
[1740591358010,90.76,135.83,135.78,20.0]
[1740591359897,0.063,135.85,135.81,18.933972]
[1740591360305,2.2713,135.85,135.78,0.28432314]
[1740591360599,84.9,135.84,135.7,1.5372]
[1740591360814,92.74,135.83,135.7,1.5372]
[1740591361302,6.1951,135.79,135.7,1.5372]
[1740591361503,90.74,135.78,135.69,0.03]
[1740591361680,90.74,135.78,135.69,20.03]
[1740591361876,82.9,135.77,135.69,0.03]
[1740591362402,3.73610216,135.76,135.69,0.03]
[1740591362596,82.9,135.75,135.69,0.03]
[1740591362799,82.9,135.77,135.7,20.0]
[1740591363000,82.9,135.77,135.73,18.64964886]
[1740591363586,82.9,135.81,135.74,0.28432314]
[1740591363818,82.9,135.81,135.75,18.64964886]
[1740591363983,82.9,135.81,135.74,20.14216157]
[1740591364183,82.9,135.82,135.77,20.28432314]
[1740591365105,82.9,135.82,135.78,18.64964886]
[1740591365306,82.9,135.82,135.77,20.28432314]
[1740591365515,82.9,135.82,135.77,20.0]
[1740591365727,82.9,135.82,135.78,18.933972]
[1740591365918,7.84,135.83,135.78,18.933972]
[1740591366125,82.963,135.85,135.78,18.933972]
[1740591366418,85.1713,135.85,135.77,20.0]
[1740591366915,85.1713,135.85,135.75,18.933972]
[1740591367122,82.9,135.84,135.76,20.0]
[1740591367318,82.9,135.84,135.77,0.56864628]
[1740591367620,82.9,135.84,135.78,18.64964886]
[1740591368315,82.9,135.84,135.79,20.0]
[1740591368491,0.063,135.82,135.75,7.3663]
[1740591368689,82.963,135.82,135.75,0.56864628]
[1740591368992,82.963,135.82,135.77,20.0]
[1740591369608,82.963,135.82,135.73,91.0339]
[1740591369609,82.963,135.82,135.73,90.0339]
[1740591369794,93.0118,135.82,135.77,20.0]
[1740591369992,93.0118,135.82,135.74,18.64964886]
[1740591370312,93.0118,135.82,135.73,1.6227]
[1740591370603,93.0118,135.82,135.74,18.64964886]
[1740591371091,82.9,135.81,135.74,18.64964886]
[1740591371286,85.109,135.81,135.73,1.6227]
[1740591371623,85.109,135.81,135.74,20.0]
[1740591371789,82.9,135.8,135.69,8.9921]
[1740591371990,90.5559,135.79,135.69,0.03]
[1740591372218,87.58447352,135.78,135.69,0.03]
[1740591372424,90.72,135.77,135.69,0.03]
[1740591372594,90.72,135.77,135.69,18.67964886]
[1740591372797,90.72,135.77,135.69,0.03]
[1740591373014,90.72,135.77,135.71,0.14216157]
[1740591373216,82.9,135.76,135.69,0.03]
[1740591373405,2.2099,135.75,135.69,0.03]
[1740591373692,82.9,135.74,135.69,0.03]
[1740591374093,82.9,135.74,135.69,20.03]
[1740591374524,82.9,135.74,135.7,18.64964886]
[1740591374889,82.9,135.78,135.71,0.56864628]
[1740591375088,20.45169028,135.79,135.74,18.64964886]
[1740591375089,82.9,135.77,135.74,18.64964886]
[1740591375311,7.82,135.79,135.72,7.3681]
[1740591375506,7.82,135.79,135.72,26.01774886]
[1740591375707,10.0293,135.79,135.71,82.4]
[1740591375914,7.82,135.79,135.71,89.7686]
[1740591376319,10.0293,135.79,135.71,82.4]
[1740591376639,7.82,135.79,135.72,18.64964886]
[1740591377002,90.72,135.79,135.75,20.0]
[1740591377699,90.72,135.79,135.75,27.3664]
[1740591377903,90.72,135.79,135.72,20.24244886]
[1740591378192,82.9,135.78,135.75,20.0]
[1740591379431,82.9,135.81,135.77,0.56864628]
[1740591379609,0.063,135.82,135.78,18.64964886]
[1740591380299,0.063,135.82,135.81,20.0]
[1740591381100,0.063,135.82,135.79,20.0]
[1740591381300,0.063,135.82,135.76,1.6275]
[1740591381497,82.9,135.81,135.72,1.6275]
[1740591381735,90.8,135.8,135.72,1.6275]
[1740591381904,82.9,135.79,135.73,18.64964886]
[1740591382103,82.9,135.78,135.73,18.64964886]
[1740591383218,82.9,135.77,135.72,1.6275]
[1740591383412,85.1096,135.77,135.72,1.6275]
[1740591383604,85.1096,135.77,135.72,21.6275]
[1740591383826,82.9,135.77,135.73,18.64964886]
[1740591384606,85.1096,135.77,135.69,0.03]
[1740591384913,82.9,135.76,135.72,20.0]
[1740591385114,82.9,135.76,135.7,18.64964886]
[1740591385516,2.2099,135.75,135.7,18.64964886]
[1740591387421,82.9,135.76,135.72,20.0]
[1740591387725,7.86,135.78,135.69,26.61789514]
[1740591387726,82.9,135.75,135.69,0.03]
[1740591387913,82.9,135.74,135.69,0.03]
[1740591388927,90.8,135.73,135.69,0.03]
[1740591389227,82.9,135.72,135.63,0.03]
[1740591389534,7.7375,135.7,135.63,0.03]
[1740591390110,7.7375,135.7,135.64,20.0]
[1740591390846,82.9,135.69,135.63,0.03]
[1740591391052,82.9,135.68,135.63,0.03]
[1740591391218,2.2106,135.71,135.66,20.0]
[1740591391553,82.9,135.72,135.67,18.64964886]
[1740591392017,82.9,135.72,135.64,7.94094628]
[1740591392417,82.9,135.72,135.67,0.14216157]
[1740591392833,7.9,135.73,135.67,0.14216157]
[1740591393027,7.9,135.73,135.7,20.0]
[1740591393919,82.9,135.74,135.7,20.0]
[1740591394121,0.063,135.82,135.75,0.56864628]
[1740591394320,0.063,135.82,135.76,18.64964886]
[1740591394735,0.063,135.82,135.74,8.2481]
[1740591394942,0.063,135.82,135.74,21.5911]
[1740591395128,0.063,135.82,135.76,0.56864628]
[1740591395318,0.063,135.82,135.78,20.0]
[1740591395824,0.063,135.82,135.8,20.0]
[1740591396020,0.063,135.82,135.81,18.64964886]
[1740591396214,0.063,135.82,135.8,20.0]
[1740591397754,0.063,135.82,135.81,18.64964886]
[1740591397960,0.063,135.85,135.84,38.64964886]
[1740591398125,0.063,135.88,135.87,20.0]
[1740591398448,0.063,135.88,135.87,39.21829514]
[1740591399153,0.063,135.89,135.88,19.21829514]
[1740591400133,0.063,135.89,135.88,26.57769514]
[1740591400658,0.063,135.93,135.88,231.91743925]
[1740591400861,0.063,135.93,135.92,19.21829514]
[1740591401523,0.063,135.93,135.92,20.78629514]
[1740591401726,0.063,135.93,135.92,28.14349514]
[1740591401936,79.339,136.02,135.96,18.64964886]
[1740591402428,0.063,136.03,135.98,18.64964886]
[1740591402628,0.063,136.03,136.01,20.0]
[1740591403222,0.063,136.03,135.93,204.33974411]
[1740591403452,0.063,136.03,135.94,0.56864628]
[1740591403624,0.063,136.03,135.97,19.21829514]
[1740591403827,0.063,136.03,136.0,20.0]
[1740591404260,0.063,136.03,136.01,18.64964886]
[1740591404634,0.063,136.03,135.97,0.56864628]
[1740591405326,0.063,136.03,136.01,20.0]
[1740591405532,0.063,136.03,135.98,18.64964886]
[1740591406262,0.063,136.03,135.92,1.568]
[1740591406487,79.339,136.02,135.92,1.568]
[1740591406655,79.339,136.02,135.93,19.21829514]
[1740591407045,79.339,136.02,135.96,20.0]
[1740591407252,0.063,136.03,135.93,19.21829514]
[1740591407467,0.063,136.03,135.97,19.21829514]
[1740591407681,2.2683,136.03,135.97,19.21829514]
[1740591408178,2.2683,136.03,135.97,18.64964886]
[1740591408947,2.2683,136.03,135.94,7.3561]
[1740591409177,2.2683,136.03,135.95,19.21829514]
[1740591409353,79.339,136.02,135.99,18.64964886]
[1740591409556,79.339,136.02,135.98,20.0]
[1740591410184,81.5447,136.02,135.98,20.0]
[1740591410688,81.5447,136.02,135.95,82.4]
[1740591410855,79.339,136.01,135.92,1.568]
[1740591411055,87.319,136.01,135.93,0.14216157]
[1740591411274,87.319,136.01,135.93,19.07613357]
[1740591411660,87.319,136.01,135.88,204.33974411]
[1740591411992,79.339,136.0,135.89,7.3586]
[1740591412150,2.206,135.99,135.9,18.64964886]
[1740591412359,2.206,135.99,135.92,18.64964886]
[1740591412607,87.0601,135.99,135.92,38.64964886]
[1740591412755,87.0601,135.99,135.92,18.64964886]
[1740591412951,81.545,135.99,135.91,0.14216157]
[1740591413453,81.545,135.99,135.94,18.64964886]
[1740591413686,81.545,135.99,135.93,20.0]
[1740591413892,81.545,135.99,135.92,20.42648471]
[1740591414079,81.545,135.99,135.93,18.64964886]
[1740591414693,79.339,136.0,135.94,0.56864628]
[1740591415082,81.5449,136.0,135.93,18.64964886]
[1740591415396,87.0596,136.0,135.93,18.64964886]
[1740591415997,7.7217,135.98,135.92,20.0]
[1740591416287,2.2062,135.98,135.93,18.64964886]
[1740591417057,79.339,135.99,135.95,20.0]
[1740591417377,79.339,136.01,135.96,18.64964886]
[1740591418158,79.339,136.01,135.96,26.00464886]
[1740591418666,79.339,136.01,135.96,18.64964886]
[1740591419081,79.339,136.01,135.96,26.00464886]
[1740591419783,81.5447,136.01,135.96,18.64964886]
[1740591420283,81.5447,136.01,135.95,20.0]
[1740591420474,81.5447,136.01,135.94,0.42648471]
[1740591420676,81.5447,136.01,135.94,7.78248471]
[1740591421098,81.5447,136.01,135.95,0.14216157]
[1740591421269,79.339,136.01,135.95,0.14216157]
[1740591421470,79.339,136.01,135.98,18.64964886]
[1740591421678,0.03,136.02,135.98,18.64964886]
[1740591421878,0.03,136.02,136.0,18.64964886]
[1740591422690,0.03,136.02,135.99,20.0]
[1740591423067,0.03,136.02,136.01,39.21829514]
[1740591423373,0.03,136.02,136.01,121.61829514]
[1740591424085,0.03,136.02,136.01,128.97069514]
[1740591424487,0.03,136.02,136.01,46.57069514]
[1740591424783,0.063,136.09,136.06,20.0]
[1740591425110,0.063,136.09,136.08,19.21829514]
[1740591426182,0.063,136.09,136.08,26.56689514]
[1740591426489,0.063,136.12,136.11,38.64964886]
[1740591427480,0.063,136.12,136.11,39.21829514]
[1740591427683,0.063,136.12,136.11,20.0]
[1740591428568,0.063,136.12,136.11,38.64964886]
[1740591428969,0.063,136.12,136.11,20.0]
[1740591430475,0.063,136.12,136.05,7.9]
[1740591430698,0.063,136.12,136.06,0.14216157]
[1740591430880,79.339,136.11,136.03,1.6574]
[1740591431082,79.339,136.11,136.01,7.3524]
[1740591431288,79.339,136.1,135.99,7.3534]
[1740591431496,79.339,136.09,135.99,7.3534]
[1740591431791,79.339,136.08,135.99,7.3534]
[1740591431995,87.219,136.07,135.98,1.5022]
[1740591432291,87.219,136.07,136.0,20.0]
[1740591432496,79.339,136.06,136.0,20.0]
[1740591432701,2.205,136.05,136.0,20.0]
[1740591433097,81.5439,136.06,136.01,18.64964886]
[1740591433595,79.339,136.1,136.01,0.56864628]
[1740591433781,79.339,136.09,136.03,20.0]
[1740591434198,79.339,136.09,136.04,18.64964886]
[1740591434375,7.0576,136.13,136.03,20.0]
[1740591434376,79.339,136.08,136.03,20.0]
[1740591434575,79.339,136.07,136.0,7.3529]
[1740591434800,79.339,136.06,136.01,20.0]
[1740591436081,79.339,136.06,136.02,18.64964886]
[1740591436576,79.339,136.1,136.05,0.56864628]
[1740591436784,79.339,136.1,136.06,18.64964886]
[1740591437396,79.339,136.09,136.01,53.6332]
[1740591437627,79.339,136.08,136.01,27.3522]
[1740591437911,2.2047,136.07,135.99,26.00304886]
[1740591438114,87.259,136.06,135.99,26.00304886]
[1740591438317,79.339,136.05,135.99,26.00304886]
[1740591438981,79.339,136.05,136.03,38.64964886]
[1740591439182,79.339,136.08,136.05,18.64964886]
[1740591439509,79.339,136.11,136.05,18.64964886]
[1740591439705,79.339,136.1,136.05,18.64964886]
[1740591440086,0.03,136.06,136.05,18.64964886]
[1740591440309,0.03,136.06,136.05,19.21829514]
[1740591440884,0.03,136.06,136.05,18.64964886]
[1740591441205,0.03,136.06,136.05,0.56864628]
[1740591441408,0.03,136.06,136.05,7.91884628]
[1740591441713,0.03,136.06,136.05,20.0]
[1740591441886,0.03,136.06,136.04,7.3505]
[1740591442085,0.03,136.06,136.02,1.5546]
[1740591442300,0.03,136.06,135.96,158.77604411]
[1740591442301,79.339,136.05,135.97,1.6485]
[1740591442492,79.339,136.05,135.97,9.0028]
[1740591442709,79.339,136.05,135.98,18.64964886]
[1740591442897,79.339,136.04,135.96,0.063]
[1740591443095,87.239,136.03,135.96,0.063]
[1740591443406,2.2057,136.01,135.96,0.063]
[1740591443702,7.72,136.01,135.96,0.063]
[1740591443918,79.339,136.0,135.96,0.063]
[1740591444223,79.339,135.99,135.96,0.063]
[1740591445197,2.2062,135.98,135.96,0.063]
[1740591445720,79.339,135.97,135.96,0.063]
[1740591445917,6.0933,135.97,135.96,0.063]
[1740591446730,83.9,135.96,135.91,0.063]
[1740591446907,82.9,135.95,135.91,0.063]
[1740591447099,2.2068,135.94,135.91,0.063]
[1740591447802,7.7239,135.94,135.91,0.063]
[1740591450147,91.76,135.93,135.91,0.063]
[1740591450330,82.9,135.92,135.91,0.0001]
[1740591450533,2.14216157,135.92,135.91,0.0001]
[1740591450908,9.86,135.93,135.91,0.0001]
[1740591451523,2.2071,135.92,135.91,0.0001]
[1740591452032,4.2071,135.92,135.91,0.0001]
[1740591452613,2.0,135.91,135.82,20.063]
[1740591452822,6.5401,135.89,135.82,20.063]
[1740591453040,7.84,135.88,135.82,20.063]
[1740591453239,82.9,135.87,135.82,20.063]
[1740591453622,85.1081,135.86,135.82,0.063]
[1740591453949,82.9,135.85,135.82,0.063]
[1740591454245,82.9,135.84,135.82,0.063]
[1740591454429,82.9,135.83,135.82,0.063]
[1740591454832,8.7284,135.86,135.82,0.063]
[1740591455032,82.9,135.85,135.82,0.063]
[1740591455242,88.68162481,135.85,135.82,0.063]
[1740591455546,2.2084,135.84,135.82,0.063]
[1740591456646,82.9,135.83,135.82,0.063]
[1740591457250,90.7,135.83,135.82,0.063]
[1740591457618,92.9086,135.83,135.82,0.063]
[1740591458226,10.0086,135.83,135.82,0.063]
[1740591462037,10.0086,135.83,135.82,0.0001]
[1740591464639,2.0,135.8,135.7,82.4]
[1740591464827,2.0,135.8,135.69,7.3693]
[1740591465023,2.0,135.8,135.68,15.6141]
[1740591465229,1.0,135.79,135.68,15.6141]
[1740591465452,7.74,135.78,135.71,20.0]
[1740591465759,9.9496,135.78,135.72,18.64964886]
[1740591466556,7.74,135.78,135.72,7.3679]
[1740591466739,9.9494,135.78,135.72,7.3679]
[1740591467451,2.2091,135.8,135.72,7.3679]
[1740591467664,9.9491,135.8,135.72,7.3679]
[1740591467952,1.0,135.75,135.68,0.063]
[1740591468252,90.82,135.74,135.68,0.063]
[1740591469449,3.66251975,135.73,135.68,0.063]
[1740591470353,2.2104,135.72,135.68,0.063]
[1740591470555,85.1104,135.72,135.68,0.063]
[1740591471455,82.9,135.72,135.68,0.063]
[1740591472057,2.2103,135.73,135.68,0.063]
[1740591473063,82.9,135.72,135.68,0.063]
[1740591473256,82.9,135.71,135.68,0.063]
[1740591473959,2.2103,135.73,135.68,0.063]
[1740591476462,82.9,135.75,135.7,18.64964886]
[1740591476760,85.1101,135.74,135.7,20.0]
[1740591476968,82.9,135.74,135.71,18.64964886]
[1740591477261,82.9,135.74,135.7,20.0]
[1740591477763,82.9,135.74,135.71,18.64964886]
[1740591478064,82.9,135.74,135.7,20.0]
[1740591478434,82.9,135.73,135.7,20.0]
[1740591478841,82.9,135.73,135.69,1.5267]
[1740591479243,82.9,135.72,135.68,0.063]
[1740591479871,82.9,135.71,135.68,0.063]
[1740591480781,82.9,135.7,135.68,0.063]
[1740591482885,82.9,135.73,135.69,18.64964886]
[1740591483180,82.9,135.75,135.73,18.64964886]
[1740591483349,82.9,135.75,135.71,20.0]
[1740591483672,82.9,135.75,135.68,1.7218]
[1740591483673,82.9,135.74,135.68,1.7218]
[1740591483874,10.0499,135.75,135.69,39.07613357]
[1740591483875,82.9,135.73,135.69,39.07613357]
[1740591484376,82.9,135.73,135.69,20.0]
[1740591484676,82.9,135.73,135.7,18.64964886]
[1740591484885,82.9,135.73,135.69,20.0]
[1740591485200,82.9,135.72,135.68,0.063]
[1740591485479,82.9,135.71,135.68,0.063]
[1740591485765,82.9,135.7,135.68,0.063]
[1740591486357,82.9,135.69,135.68,0.063]
[1740591487176,82.9,135.72,135.68,0.063]
[1740591487356,85.1105,135.72,135.68,0.063]
[1740591487556,82.9,135.72,135.68,0.063]
[1740591487766,82.9,135.71,135.68,0.063]
[1740591488986,85.1106,135.71,135.68,0.063]
[1740591489185,82.9,135.71,135.68,20.063]
[1740591489397,82.9,135.74,135.72,20.0]
[1740591489684,3.74955081,135.78,135.7,0.56864628]
[1740591489685,82.9,135.77,135.73,18.64964886]
[1740591490181,82.9,135.77,135.72,20.0]